[Event "4th Baskent University Open 2019"]
[Site "Ankara"]
[Date "2019.06.18"]
[Round "2"]
[White "Annaberdiev, Meilis"]
[Black "Guven, Oguz Kagan"]
[Result "1-0"]
[ECO "B74"]
[WhiteElo "2532"]
[BlackElo "2095"]
[Annotator "ChessBase"]
[PlyCount "67"]
[EventDate "2019.06.18"]
[EventType "swiss"]
[EventCountry "TUR"]
[SourceTitle "playchess.com"]
[Source "ChessBase"]
[SourceQuality "1"]
[TimeControl "5400+30"]

1. e4 {[%emt 0:00:30]} c5 {[%emt 0:00:30]} 2. Nf3 {[%emt 0:00:30]} Nc6 {[%emt 0:00:00]} 3. d4 {[%emt 0:00:00]} cxd4 {[%emt 0:00:00]} 4. Nxd4 {[%emt 0:00:00]} g6 {[%emt 0:00:00]} 5. Nc3 {[%emt 0:01:30]} Bg7 {[%emt 0:00:00]} 6. Be3 {[%emt 0:00:30]} Nf6 {[%emt 0:00:00]} 7. Nb3 {[%emt 0:00:00]} O-O {[%emt 0:01:00]} 8. Be2 {[%emt 0:00:00]} d6 {[%emt 0:02:30]} 9. O-O {[%emt 0:00:30]} Bd7 {[%emt 0:01:30]} 10. f4 {[%emt 0:00:30]} Rc8 {[%emt 0:04:30]} 11. Bf3 {[%emt 0:00:30]} a6 {[%emt 0:03:30]} 12. Qe2 {[%emt 0:06:30]} b5 {[%emt 0:01:30]} 13. a3 {[%emt 0:04:30]} Re8 {[%emt 0:06:30]} 14. Rad1 {[%emt 0:01:30]} Qc7 {[%emt 0:00:30]} 15. Rd2 {[%emt 0:15:30]} Be6 {[%emt 0:11:30]} 16. Qf2 {[%emt 0:04:30]} Rb8 {[%emt 0:13:30]} 17. Nd5 {[%emt 0:00:30]} Bxd5 {[%emt 0:00:30]} 18. exd5 {[%emt 0:00:30]} Na5 {[%emt 0:00:30]} 19. Nxa5 {[%emt 0:00:30]} Qxa5 {[%emt 0:00:30]} 20. c3 {[%emt 0:00:30]} Nd7 {[%emt 0:00:30]} 21. h4 {[%emt 0:05:30]} Qc7 {[%emt 0:07:30]} 22. h5 {[%emt 0:01:30]} Nb6 {[%emt 0:04:30]} 23. Re2 {[%emt 0:10:30]} e5 {[%emt 0:06:30]} 24. dxe6 {[%emt 0:12:30]} Rxe6 {[%emt 0:00:00]} 25. Bg4 {[%emt 0:07:30]} f5 {[%emt 0:00:00]} 26. Bf3 {[%emt 0:00:30]} d5 {[%emt 0:04:30]} 27. hxg6 {[%emt 0:07:42]} Rxg6 {[%emt 0:01:30]} 28. Rfe1 {[%emt 0:00:51]} Rd8 {[%emt 0:03:30]} 29. Bc5 {[%emt 0:00:06]} Nc8 {[%emt 0:02:30]} 30. Bh5 {[%emt 0:01:02]} Nd6 {[%emt 0:02:30]} 31. Bxg6 {[%emt 0:01:30]} hxg6 {[%emt 0:00:00]} 32. Re7 {[%emt 0:01:21]} Rd7 {[%emt 0:00:00]} 33. Bxd6 {[%emt 0:01:09]} Qxd6 {[%emt 0:00:30]} 34. R7e6 {[%emt 0:00:00]} 1-0

[Event "4th Baskent University Open 2019"]
[Site "Ankara"]
[Date "2019.06.18"]
[Round "2"]
[White "Maghalashvili, Davit"]
[Black "Erdogan, Anil Berk"]
[Result "1-0"]
[ECO "A37"]
[WhiteElo "2500"]
[BlackElo "2087"]
[Annotator "ChessBase"]
[PlyCount "145"]
[EventDate "2019.06.18"]
[EventType "swiss"]
[EventCountry "TUR"]
[SourceTitle "playchess.com"]
[Source "ChessBase"]
[SourceQuality "1"]
[TimeControl "5400+30"]

1. Nf3 {[%emt 0:00:30]} c5 {[%emt 0:03:30]} 2. c4 {[%emt 0:00:00]} g6 {[%emt 0:00:30]} 3. g3 {[%emt 0:01:00]} Bg7 {[%emt 0:00:30]} 4. Bg2 {[%emt 0:00:30]} Nc6 {[%emt 0:00:30]} 5. Nc3 {[%emt 0:00:00]} e6 {[%emt 0:00:00]} 6. d4 {[%emt 0:01:00]} cxd4 {[%emt 0:00:00]} 7. Nb5 {[%emt 0:00:00]} d5 {[%emt 0:00:30]} 8. cxd5 {[%emt 0:00:00]} exd5 {[%emt 0:01:30]} 9. O-O {[%emt 0:04:30]} Nge7 {[%emt 0:01:30]} 10. Nbxd4 {[%emt 0:02:30]} O-O {[%emt 0:02:30]} 11. Be3 {[%emt 0:02:30]} Bg4 {[%emt 0:06:30]} 12. Re1 {[%emt 0:00:30]} Bxf3 {[%emt 0:10:30]} 13. exf3 {[%emt 0:10:30]} Nxd4 {[%emt 0:03:30]} 14. Bxd4 {[%emt 0:00:30]} Bxd4 {[%emt 0:04:30]} 15. Qxd4 {[%emt 0:00:30]} Nc6 {[%emt 0:00:30]} 16. Qc5 {[%emt 0:00:30]} d4 {[%emt 0:10:30]} 17. f4 {[%emt 0:03:30]} Qb6 {[%emt 0:08:30]} 18. Qxb6 {[%emt 0:00:30]} axb6 {[%emt 0:00:30]} 19. a3 {[%emt 0:00:30]} Rfd8 {[%emt 0:00:30]} 20. Rad1 {[%emt 0:00:30]} Rd6 {[%emt 0:00:30]} 21. Rd3 {[%emt 0:02:30]} Kf8 {[%emt 0:15:30]} 22. Bf3 {[%emt 0:04:30]} Rad8 {[%emt 0:07:30]} 23. h4 {[%emt 0:00:30]} Na5 {[%emt 0:01:30]} 24. Rc1 {[%emt 0:01:30]} Ke7 {[%emt 0:03:02]} 25. Kf1 {[%emt 0:00:30]} R8d7 {[%emt 0:04:21]} 26. h5 {[%emt 0:03:30]} Kd8 {[%emt 0:00:22]} 27. Bg4 {[%emt 0:03:30]} f5 {[%emt 0:02:39]} 28. Bf3 {[%emt 0:00:00]} Rc7 {[%emt 0:01:59]} 29. Rcd1 {[%emt 0:01:00]} Rcd7 {[%emt 0:00:01]} 30. b3 {[%emt 0:00:30]} Nc6 {[%emt 0:02:05]} 31. Kg2 {[%emt 0:04:30]} Nb8 {[%emt 0:03:30]} 32. Rh1 {[%emt 0:01:30]} Nc6 {[%emt 0:02:15]} 33. b4 {[%emt 0:02:30]} Ne7 {[%emt 0:00:17]} 34. b5 {[%emt 0:03:30]} Rc7 {[%emt 0:02:24]} 35. hxg6 {[%emt 0:00:30]} Nxg6 {[%emt 0:00:02]} 36. Rh5 {[%emt 0:00:30]} Rc3 {[%emt 0:02:01]} 37. Be2 {[%emt 0:01:30]} Rc2 {[%emt 0:01:30]} 38. Kf3 {[%emt 0:00:30]} Ne7 {[%emt 0:00:26]} 39. Rxh7 {[%emt 0:00:30]} Rd5 {[%emt 0:00:32]} 40. Rh6 {[%emt 0:03:30]} Nc8 {[%emt 0:00:17]} 41. Bd1 {[%emt 0:00:30]} Rc3 {[%emt 0:00:31]} 42. Ke2 {[%emt 0:00:30]} Kc7 {[%emt 0:00:44]} 43. Rh7+ {[%emt 0:02:30]} Kb8 {[%emt 0:00:01]} 44. Rh8 {[%emt 0:05:30]} Kc7 {[%emt 0:00:50]} 45. Re8 {[%emt 0:01:30]} Nd6 {[%emt 0:00:38]} 46. Re7+ {[%emt 0:00:30]} Kd8 {[%emt 0:00:04]} 47. Re5 {[%emt 0:00:30]} Rxe5+ {[%emt 0:00:57]} 48. fxe5 {[%emt 0:00:30]} Nxb5 {[%emt 0:00:20]} 49. a4 {[%emt 0:00:30]} Na7 {[%emt 0:00:38]} 50. Rxd4+ {[%emt 0:00:30]} Ke7 {[%emt 0:00:01]} 51. Kd2 {[%emt 0:00:30]} Ra3 {[%emt 0:00:38]} 52. Rd3 {[%emt 0:02:30]} Ra2+ {[%emt 0:00:06]} 53. Ke3 {[%emt 0:00:30]} Nc6 {[%emt 0:00:34]} 54. f4 {[%emt 0:01:30]} Nb4 {[%emt 0:00:10]} 55. Rd4 {[%emt 0:01:30]} Ra3+ {[%emt 0:01:32]} 56. Ke2 {[%emt 0:00:30]} Na6 {[%emt 0:00:27]} 57. Bc2 {[%emt 0:01:30]} Rxg3 {[%emt 0:00:33]} 58. Bxf5 {[%emt 0:00:30]} Nc5 {[%emt 0:00:01]} 59. Rd6 {[%emt 0:00:00]} Ra3 {[%emt 0:00:58]} 60. Rxb6 {[%emt 0:02:00]} Rxa4 {[%emt 0:00:03]} 61. Kf3 {[%emt 0:00:30]} Ra6 {[%emt 0:00:59]} 62. Rb5 {[%emt 0:00:30]} Rc6 {[%emt 0:00:15]} 63. Be4 {[%emt 0:01:30]} Rc7 {[%emt 0:00:02]} 64. f5 {[%emt 0:00:00]} Nd7 {[%emt 0:01:09]} 65. Kf4 {[%emt 0:00:00]} b6 {[%emt 0:00:11]} 66. Kg5 {[%emt 0:00:30]} Rc1 {[%emt 0:00:52]} 67. f6+ {[%emt 0:01:30]} Kf8 {[%emt 0:00:29]} 68. Rd5 {[%emt 0:01:30]} Rg1+ {[%emt 0:00:02]} 69. Kh5 {[%emt 0:01:30]} Nxe5 {[%emt 0:01:30]} 70. Rxe5 {[%emt 0:00:30]} Kf7 {[%emt 0:00:00]} 71. Rf5 {[%emt 0:00:30]} Rd1 {[%emt 0:00:00]} 72. Bd5+ {[%emt 0:00:30]} Kf8 {[%emt 0:00:00]} 73. Rg5 {[%emt 0:00:00]} 1-0

[Event "4th Baskent University Open 2019"]
[Site "Ankara"]
[Date "2019.06.18"]
[Round "2"]
[White "Pacher, Milan"]
[Black "Gokcek, Kursat Bugra"]
[Result "1-0"]
[ECO "A48"]
[WhiteElo "2434"]
[BlackElo "2127"]
[Annotator "NA"]
[PlyCount "99"]
[EventDate "2019.06.18"]
[EventType "swiss"]
[EventCountry "TUR"]
[SourceTitle "playchess.com"]
[Source "ChessBase"]
[SourceQuality "1"]
[TimeControl "5400+30"]

1. d4 {[%emt 0:00:30]} Nf6 {[%emt 0:00:30]} 2. Bf4 {[%emt 0:00:00]} g6 {[%emt 0:00:30]} 3. e3 {[%emt 0:00:00]} Bg7 {[%emt 0:00:30]} 4. Nf3 {[%emt 0:00:30]} d6 {[%emt 0:00:30]} 5. h3 {[%emt 0:00:30]} O-O {[%emt 0:00:30]} 6. Be2 {[%emt 0:00:00]} c5 {[%emt 0:00:00]} 7. c3 {[%emt 0:01:00]} Be6 {[%emt 0:00:00]} 8. Nbd2 {[%emt 0:00:30]} Qb6 {[%emt 0:00:30]} 9. Qc1 {[%emt 0:00:30]} Nc6 {[%emt 0:01:30]} 10. O-O {[%emt 0:01:30]} cxd4 {[%emt 0:00:30]} 11. exd4 {[%emt 0:00:30]} Bd5 {[%emt 0:02:30]} 12. Be3 {[%emt 0:07:30]} Nd7 {[%emt 0:15:30]} 13. b3 {[%emt 0:01:30]} Rac8 {[%emt 0:05:30]} 14. Qa3 {[%emt 0:02:30]} Qc7 {[%emt 0:03:30]} 15. c4 {[%emt 0:01:30]} Bxf3 {[%emt 0:00:30]} 16. Nxf3 {[%emt 0:00:30]} e5 {[%emt 0:01:30]} 17. Rad1 {[%emt 0:02:30]} e4 {[%emt 0:03:30]} 18. Ng5 {[%emt 0:05:30]} Nf6 {[%emt 0:05:30]} 19. d5 {[%emt 0:03:30]} Ne5 {[%emt 0:07:30]} 20. f4 {[%emt 0:01:30]} exf3 {[%emt 0:02:30]} 21. Nxf3 {[%emt 0:00:30]} Ne4 {[%emt 0:00:30]} 22. Nxe5 {[%emt 0:01:30]} Bxe5 {[%emt 0:00:30]} 23. Bf3 {[%emt 0:00:30]} Ng3 {[%emt 0:01:30]} 24. Rfe1 {[%emt 0:03:30]} Bc3 {[%emt 0:00:30]} 25. Bd2 {[%emt 0:00:00]} Bd4+ {[%emt 0:00:30]} 26. Kh2 {[%emt 0:01:00]} Bf2 {[%emt 0:01:30]} 27. Bh6 {[%emt 0:02:30]} Nf5 {[%emt 0:09:30]} 28. Bxf8 {[%emt 0:00:30]} Bg3+ {[%emt 0:04:30]} 29. Kh1 {[%emt 0:01:30]} Bf4 {[%emt 0:00:30]} 30. Qxa7 {[%emt 0:02:30]} Rxf8 {[%emt 0:01:30]} 31. g4 {[%emt 0:05:30]} Nh4 {[%emt 0:02:30]} 32. Qf2 {[%emt 0:01:30]} g5 {[%emt 0:00:30]} 33. Be4 {[%emt 0:00:30]} Qa5 {[%emt 0:02:30]} 34. c5 {[%emt 0:04:30]} dxc5 {[%emt 0:01:30]} 35. d6 {[%emt 0:00:30]} Rd8 {[%emt 0:00:00]} 36. Bxb7 {[%emt 0:05:30]} Qc3 {[%emt 0:00:00]} 37. Bg2 {[%emt 0:00:30]} Rxd6 {[%emt 0:02:30]} 38. Rxd6 {[%emt 0:00:30]} Bxd6 {[%emt 0:00:30]} 39. Qe3 {[%emt 0:00:30]} Qf6 {[%emt 0:00:00]} 40. Rf1 {[%emt 0:00:30]} Bf4 {[%emt 0:03:00]} 41. Qxc5 {[%emt 0:00:30]} Qb2 {[%emt 0:00:30]} 42. Qf2 {[%emt 0:00:30]} Qc3 {[%emt 0:00:00]} 43. Qe1 {[%emt 0:03:30]} Qc7 {[%emt 0:01:00]} 44. Bd5 {[%emt 0:03:30]} Qc2 {[%emt 0:03:30]} 45. Qe8+ {[%emt 0:00:30]} Kg7 {[%emt 0:00:00]} 46. Qxf7+ {[%emt 0:00:30]} Kh6 {[%emt 0:00:00]} 47. Qf8+ {[%emt 0:00:30]} Kg6 {[%emt 0:00:00]} 48. Bf7+ {[%emt 0:02:30]} Kf6 {[%emt 0:00:00]} 49. Be8+ {[%emt 0:00:00]} Ke5 {[%emt 0:02:30]} 50. Re1+ {[%emt 0:01:00]} 1-0

[Event "4th Baskent University Open 2019"]
[Site "Ankara"]
[Date "2019.06.18"]
[Round "2"]
[White "Bagaturov, Giorgi"]
[Black "Rzayev, Askar Aliakbar"]
[Result "1-0"]
[ECO "D37"]
[WhiteElo "2422"]
[BlackElo "2089"]
[Annotator "NA"]
[PlyCount "65"]
[EventDate "2019.06.18"]
[EventType "swiss"]
[EventCountry "TUR"]
[SourceTitle "playchess.com"]
[Source "ChessBase"]
[SourceQuality "1"]
[TimeControl "5400+30"]

1. d4 {[%emt 0:00:30]} Nf6 {[%emt 0:00:30]} 2. Nf3 {[%emt 0:00:00]} d5 {[%emt 0:00:00]} 3. c4 {[%emt 0:01:00]} e6 {[%emt 0:00:00]} 4. Nc3 {[%emt 0:00:30]} a6 {[%emt 0:03:30]} 5. e3 {[%emt 0:05:30]} Be7 {[%emt 0:05:30]} 6. a3 {[%emt 0:01:30]} dxc4 {[%emt 0:02:30]} 7. Bxc4 {[%emt 0:00:30]} b5 {[%emt 0:00:00]} 8. Bd3 {[%emt 0:00:30]} c5 {[%emt 0:00:00]} 9. dxc5 {[%emt 0:01:30]} Bxc5 {[%emt 0:00:30]} 10. O-O {[%emt 0:00:30]} Bb7 {[%emt 0:02:30]} 11. e4 {[%emt 0:02:30]} Nbd7 {[%emt 0:02:30]} 12. h3 {[%emt 0:10:30]} O-O {[%emt 0:01:30]} 13. Bf4 {[%emt 0:06:30]} Nh5 {[%emt 0:07:30]} 14. Bh2 {[%emt 0:02:30]} Nhf6 {[%emt 0:12:30]} 15. Qe2 {[%emt 0:02:30]} Re8 {[%emt 0:01:30]} 16. e5 {[%emt 0:08:30]} Nd5 {[%emt 0:00:30]} 17. Ne4 {[%emt 0:00:00]} Be7 {[%emt 0:03:30]} 18. Rad1 {[%emt 0:02:00]} Qb6 {[%emt 0:04:30]} 19. Nd6 {[%emt 0:06:30]} Bxd6 {[%emt 0:05:30]} 20. exd6 {[%emt 0:00:30]} e5 {[%emt 0:13:30]} 21. Rfe1 {[%emt 0:24:30]} f6 {[%emt 0:11:30]} 22. Be4 {[%emt 0:04:45]} Qxd6 {[%emt 0:06:12]} 23. Qd3 {[%emt 0:00:30]} N7b6 {[%emt 0:00:01]} 24. Bxh7+ {[%emt 0:00:32]} Kf8 {[%emt 0:01:25]} 25. Nh4 {[%emt 0:05:53]} Qc6 {[%emt 0:05:16]} 26. Be4 {[%emt 0:06:28]} Qc7 {[%emt 0:04:48]} 27. Qf3 {[%emt 0:00:23]} Rad8 {[%emt 0:01:19]} 28. Ng6+ {[%emt 0:00:45]} Kg8 {[%emt 0:01:10]} 29. Qh5 {[%emt 0:01:02]} Nf4 {[%emt 0:01:50]} 30. Rxd8 {[%emt 0:02:12]} Rxd8 {[%emt 0:02:25]} 31. Bxf4 {[%emt 0:02:13]} Bxe4 {[%emt 0:00:27]} 32. Rxe4 {[%emt 0:00:24]} exf4 {[%emt 0:01:03]} 33. Re7 {[%emt 0:00:19]} 1-0

[Event "4th Baskent University Open 2019"]
[Site "Ankara"]
[Date "2019.06.18"]
[Round "2"]
[White "Odeev, Handszar"]
[Black "Unat, Can Haktan"]
[Result "1-0"]
[ECO "B50"]
[WhiteElo "2386"]
[BlackElo "2079"]
[Annotator "NA"]
[PlyCount "109"]
[EventDate "2019.06.18"]
[EventType "swiss"]
[EventCountry "TUR"]
[SourceTitle "playchess.com"]
[Source "ChessBase"]
[SourceQuality "1"]
[TimeControl "5400+30"]

1. e4 {[%emt 0:00:30]} c5 {[%emt 0:02:30]} 2. Nf3 {[%emt 0:00:30]} d6 {[%emt 0:00:30]} 3. Nc3 {[%emt 0:09:30]} Nc6 {[%emt 0:01:30]} 4. a3 {[%emt 0:01:30]} g6 {[%emt 0:04:30]} 5. Rb1 {[%emt 0:02:30]} a5 {[%emt 0:02:30]} 6. d4 {[%emt 0:01:30]} cxd4 {[%emt 0:00:30]} 7. Nxd4 {[%emt 0:00:30]} Bg7 {[%emt 0:00:30]} 8. Be3 {[%emt 0:01:30]} Nf6 {[%emt 0:00:30]} 9. Be2 {[%emt 0:02:30]} O-O {[%emt 0:07:30]} 10. O-O {[%emt 0:00:30]} Nxd4 {[%emt 0:03:30]} 11. Bxd4 {[%emt 0:00:30]} Bd7 {[%emt 0:00:30]} 12. a4 {[%emt 0:09:30]} Bc6 {[%emt 0:01:30]} 13. f3 {[%emt 0:01:30]} e5 {[%emt 0:01:30]} 14. Be3 {[%emt 0:08:30]} d5 {[%emt 0:00:00]} 15. exd5 {[%emt 0:00:00]} Nxd5 {[%emt 0:00:00]} 16. Nxd5 {[%emt 0:00:00]} Bxd5 {[%emt 0:01:30]} 17. Bc5 {[%emt 0:05:30]} Re8 {[%emt 0:02:30]} 18. Bb5 {[%emt 0:00:30]} Bc6 {[%emt 0:02:30]} 19. Bxc6 {[%emt 0:03:30]} bxc6 {[%emt 0:00:30]} 20. Qxd8 {[%emt 0:02:30]} Rexd8 {[%emt 0:00:30]} 21. Rfd1 {[%emt 0:00:30]} Rd5 {[%emt 0:01:30]} 22. Bb6 {[%emt 0:00:30]} Bf8 {[%emt 0:01:30]} 23. Kf1 {[%emt 0:04:30]} Rxd1+ {[%emt 0:02:30]} 24. Rxd1 {[%emt 0:00:30]} Rb8 {[%emt 0:00:00]} 25. Bc7 {[%emt 0:01:30]} Rxb2 {[%emt 0:07:00]} 26. Rd8 {[%emt 0:00:30]} Rb1+ {[%emt 0:00:30]} 27. Ke2 {[%emt 0:00:30]} Kg7 {[%emt 0:00:00]} 28. Bxe5+ {[%emt 0:00:00]} f6 {[%emt 0:00:00]} 29. Rd7+ {[%emt 0:01:00]} Kg8 {[%emt 0:00:30]} 30. Bxf6 {[%emt 0:00:00]} Rc1 {[%emt 0:00:30]} 31. c3 {[%emt 0:27:04]} Ra1 {[%emt 0:04:30]} 32. Rd4 {[%emt 0:04:43]} Ra2+ {[%emt 0:00:30]} 33. Kd3 {[%emt 0:02:04]} Rxg2 {[%emt 0:00:30]} 34. h4 {[%emt 0:01:19]} Rf2 {[%emt 0:04:30]} 35. Ke3 {[%emt 0:00:55]} Rb2 {[%emt 0:02:30]} 36. Rc4 {[%emt 0:00:31]} c5 {[%emt 0:01:30]} 37. Bd8 {[%emt 0:00:34]} Rb7 {[%emt 0:06:30]} 38. Bxa5 {[%emt 0:04:20]} Be7 {[%emt 0:00:00]} 39. Ke4 {[%emt 0:00:20]} Bxh4 {[%emt 0:00:00]} 40. Rxc5 {[%emt 0:00:01]} Bg3 {[%emt 0:01:30]} 41. f4 {[%emt 0:00:31]} Be1 {[%emt 0:00:30]} 42. Rc8+ {[%emt 0:00:52]} Kf7 {[%emt 0:00:30]} 43. Bb4 {[%emt 0:05:05]} h5 {[%emt 0:00:30]} 44. Kf3 {[%emt 0:00:29]} h4 {[%emt 0:01:30]} 45. a5 {[%emt 0:00:35]} Ra7 {[%emt 0:02:30]} 46. Rf8+ {[%emt 0:00:38]} Kg7 {[%emt 0:00:30]} 47. Re8 {[%emt 0:00:00]} Bd2 {[%emt 0:00:00]} 48. Re2 {[%emt 0:00:11]} Rd7 {[%emt 0:00:00]} 49. Re7+ {[%emt 0:01:26]} Rxe7 {[%emt 0:00:30]} 50. Bxe7 {[%emt 0:00:00]} Bxc3 {[%emt 0:00:00]} 51. a6 {[%emt 0:00:01]} Bd4 {[%emt 0:00:00]} 52. Bxh4 {[%emt 0:00:00]} Ba7 {[%emt 0:02:30]} 53. Bf2 {[%emt 0:00:14]} Bb8 {[%emt 0:00:30]} 54. a7 {[%emt 0:00:00]} Bxa7 {[%emt 0:00:00]} 55. Bxa7 {[%emt 0:00:00]} 1-0

[Event "4th Baskent University Open 2019"]
[Site "Ankara"]
[Date "2019.06.18"]
[Round "2"]
[White "Saraci, Nderim"]
[Black "Gokbulut, Julia"]
[Result "1-0"]
[ECO "D00"]
[WhiteElo "2377"]
[BlackElo "2058"]
[Annotator "NA"]
[PlyCount "173"]
[EventDate "2019.06.18"]
[EventType "swiss"]
[EventCountry "TUR"]
[SourceTitle "playchess.com"]
[Source "ChessBase"]
[SourceQuality "1"]
[TimeControl "5400+30"]

1. d4 {[%emt 0:00:30]} Nf6 {[%emt 0:04:30]} 2. Nf3 {[%emt 0:01:30]} g6 {[%emt 0:00:30]} 3. Nc3 {[%emt 0:00:30]} d5 {[%emt 0:00:30]} 4. Bf4 {[%emt 0:00:30]} a6 {[%emt 0:01:30]} 5. Qd2 {[%emt 0:01:30]} Bg7 {[%emt 0:01:30]} 6. Bh6 {[%emt 0:03:30]} O-O {[%emt 0:03:30]} 7. h4 {[%emt 0:02:30]} Bxh6 {[%emt 0:05:30]} 8. Qxh6 {[%emt 0:00:30]} Ng4 {[%emt 0:02:30]} 9. Qd2 {[%emt 0:02:30]} h5 {[%emt 0:02:30]} 10. e3 {[%emt 0:11:30]} Bf5 {[%emt 0:00:30]} 11. O-O-O {[%emt 0:03:30]} Nc6 {[%emt 0:04:30]} 12. Ne1 {[%emt 0:02:30]} Nf6 {[%emt 0:06:30]} 13. Nd3 {[%emt 0:06:30]} Bxd3 {[%emt 0:05:30]} 14. Bxd3 {[%emt 0:00:30]} e5 {[%emt 0:01:30]} 15. dxe5 {[%emt 0:00:30]} Nxe5 {[%emt 0:00:30]} 16. Be2 {[%emt 0:00:30]} c6 {[%emt 0:01:30]} 17. f3 {[%emt 0:08:30]} Qe7 {[%emt 0:00:30]} 18. Rhe1 {[%emt 0:15:30]} Rad8 {[%emt 0:02:30]} 19. Qd4 {[%emt 0:01:30]} c5 {[%emt 0:05:30]} 20. Qf4 {[%emt 0:00:30]} Qe6 {[%emt 0:01:30]} 21. Bf1 {[%emt 0:13:30]} b5 {[%emt 0:02:30]} 22. Kb1 {[%emt 0:01:30]} Rfe8 {[%emt 0:01:30]} 23. Qg5 {[%emt 0:02:56]} Kg7 {[%emt 0:01:30]} 24. Ne2 {[%emt 0:00:32]} Nh7 {[%emt 0:02:30]} 25. Qg3 {[%emt 0:00:25]} Nf6 {[%emt 0:03:30]} 26. Nf4 {[%emt 0:00:44]} Qc6 {[%emt 0:01:30]} 27. Qg5 {[%emt 0:02:06]} b4 {[%emt 0:06:30]} 28. e4 {[%emt 0:00:38]} d4 {[%emt 0:00:30]} 29. Nd3 {[%emt 0:01:45]} Nxd3 {[%emt 0:05:30]} 30. cxd3 {[%emt 0:00:30]} Nh7 {[%emt 0:04:30]} 31. Qd2 {[%emt 0:00:30]} Qf6 {[%emt 0:01:30]} 32. Rc1 {[%emt 0:00:33]} Rc8 {[%emt 0:01:30]} 33. Qf2 {[%emt 0:00:21]} Nf8 {[%emt 0:00:30]} 34. Be2 {[%emt 0:02:11]} Nd7 {[%emt 0:01:56]} 35. f4 {[%emt 0:00:19]} c4 {[%emt 0:04:05]} 36. g4 {[%emt 0:01:09]} cxd3 {[%emt 0:02:31]} 37. g5 {[%emt 0:01:32]} Rxc1+ {[%emt 0:00:54]} 38. Rxc1 {[%emt 0:00:02]} Qd6 {[%emt 0:02:13]} 39. e5 {[%emt 0:01:21]} Qd5 {[%emt 0:02:21]} 40. Bf3 {[%emt 0:00:29]} Qe6 {[%emt 0:01:21]} 41. Qxd4 {[%emt 0:00:32]} d2 {[%emt 0:01:43]} 42. Qxd2 {[%emt 0:09:02]} Nxe5 {[%emt 0:01:20]} 43. Be2 {[%emt 0:03:07]} Ng4 {[%emt 0:01:57]} 44. Bc4 {[%emt 0:00:17]} Qf5+ {[%emt 0:00:45]} 45. Ka1 {[%emt 0:00:10]} a5 {[%emt 0:02:12]} 46. Qd4+ {[%emt 0:00:41]} Kg8 {[%emt 0:00:12]} 47. Bd3 {[%emt 0:00:43]} Qe6 {[%emt 0:00:14]} 48. Bc4 {[%emt 0:00:34]} Qe3 {[%emt 0:00:53]} 49. Qxe3 {[%emt 0:00:37]} Rxe3 {[%emt 0:00:20]} 50. Rf1 {[%emt 0:00:41]} Re4 {[%emt 0:00:35]} 51. Bd5 {[%emt 0:00:50]} Rd4 {[%emt 0:00:11]} 52. Bb3 {[%emt 0:00:00]} Ne3 {[%emt 0:00:37]} 53. Re1 {[%emt 0:00:18]} Rxf4 {[%emt 0:00:50]} 54. Kb1 {[%emt 0:00:08]} Ng2 {[%emt 0:00:20]} 55. Re5 {[%emt 0:00:06]} Nxh4 {[%emt 0:00:00]} 56. Rxa5 {[%emt 0:00:04]} Nf3 {[%emt 0:00:16]} 57. Kc2 {[%emt 0:00:41]} Rd4 {[%emt 0:01:18]} 58. Ra6 {[%emt 0:01:07]} Ne5 {[%emt 0:01:15]} 59. Ra5 {[%emt 0:01:04]} Re4 {[%emt 0:00:07]} 60. Bd5 {[%emt 0:00:24]} Re2+ {[%emt 0:00:37]} 61. Kb3 {[%emt 0:00:24]} Nd3 {[%emt 0:01:26]} 62. Kc4 {[%emt 0:00:13]} Nxb2+ {[%emt 0:00:19]} 63. Kxb4 {[%emt 0:00:02]} h4 {[%emt 0:00:44]} 64. Ra7 {[%emt 0:00:18]} Nd3+ {[%emt 0:00:19]} 65. Kc3 {[%emt 0:00:13]} Ne5 {[%emt 0:00:20]} 66. Ra4 {[%emt 0:00:42]} Re3+ {[%emt 0:01:16]} 67. Kd4 {[%emt 0:00:47]} Ng4 {[%emt 0:00:11]} 68. Ra8+ {[%emt 0:00:34]} Kg7 {[%emt 0:00:17]} 69. Ra7 {[%emt 0:00:05]} h3 {[%emt 0:01:09]} 70. Rxf7+ {[%emt 0:01:09]} Kh8 {[%emt 0:00:00]} 71. Rf3 {[%emt 0:00:49]} Re5 {[%emt 0:01:01]} 72. Rxh3+ {[%emt 0:00:29]} Kg7 {[%emt 0:00:01]} 73. Rg3 {[%emt 0:00:38]} Rxg5 {[%emt 0:00:06]} 74. a4 {[%emt 0:00:43]} Kf6 {[%emt 0:01:07]} 75. a5 {[%emt 0:00:11]} Ke7 {[%emt 0:00:42]} 76. a6 {[%emt 0:01:02]} Kd6 {[%emt 0:00:16]} 77. Bf3 {[%emt 0:00:30]} Kc7 {[%emt 0:00:47]} 78. Rxg4 {[%emt 0:00:12]} Ra5 {[%emt 0:00:23]} 79. Rxg6 {[%emt 0:00:15]} Kb8 {[%emt 0:00:18]} 80. Be2 {[%emt 0:00:25]} Ka7 {[%emt 0:00:31]} 81. Rg7+ {[%emt 0:00:17]} Kb8 {[%emt 0:00:13]} 82. Bc4 {[%emt 0:00:08]} Ka8 {[%emt 0:00:41]} 83. Kc3 {[%emt 0:00:07]} Ra4 {[%emt 0:00:45]} 84. Kb3 {[%emt 0:00:07]} Ra5 {[%emt 0:00:19]} 85. Kb4 {[%emt 0:00:08]} Ra1 {[%emt 0:00:43]} 86. Kc5 {[%emt 0:00:13]} Rc1 {[%emt 0:00:40]} 87. Kb6 {[%emt 0:00:20]} 1-0

[Event "4th Baskent University Open 2019"]
[Site "Ankara"]
[Date "2019.06.18"]
[Round "2"]
[White "Arat, Ufuk Sezen"]
[Black "Sumer, Gun"]
[Result "1-0"]
[ECO "A14"]
[WhiteElo "2368"]
[BlackElo "1969"]
[Annotator "NA"]
[PlyCount "57"]
[EventDate "2019.06.18"]
[EventType "swiss"]
[EventCountry "TUR"]
[SourceTitle "playchess.com"]
[Source "ChessBase"]
[SourceQuality "1"]
[TimeControl "5400+30"]

1. c4 {[%emt 0:09:30]} e6 {[%emt 0:00:30]} 2. Nf3 {[%emt 0:00:30]} Nf6 {[%emt 0:00:30]} 3. g3 {[%emt 0:00:00]} d5 {[%emt 0:00:30]} 4. Bg2 {[%emt 0:00:00]} Be7 {[%emt 0:00:30]} 5. O-O {[%emt 0:00:00]} O-O {[%emt 0:00:00]} 6. b3 {[%emt 0:00:00]} d4 {[%emt 0:01:00]} 7. e3 {[%emt 0:02:30]} c5 {[%emt 0:00:00]} 8. exd4 {[%emt 0:01:30]} cxd4 {[%emt 0:00:00]} 9. Ba3 {[%emt 0:02:30]} Nc6 {[%emt 0:02:30]} 10. Re1 {[%emt 0:03:30]} Nd7 {[%emt 0:08:30]} 11. d3 {[%emt 0:04:30]} a5 {[%emt 0:05:30]} 12. Bxe7 {[%emt 0:04:30]} Qxe7 {[%emt 0:02:30]} 13. Nbd2 {[%emt 0:00:30]} f6 {[%emt 0:11:30]} 14. Nh4 {[%emt 0:08:30]} Nc5 {[%emt 0:05:30]} 15. Ne4 {[%emt 0:03:30]} g5 {[%emt 0:18:30]} 16. Nxc5 {[%emt 0:09:30]} Qxc5 {[%emt 0:00:00]} 17. Nf3 {[%emt 0:06:30]} a4 {[%emt 0:08:00]} 18. a3 {[%emt 0:04:30]} axb3 {[%emt 0:01:30]} 19. Qxb3 {[%emt 0:00:00]} Kh8 {[%emt 0:04:30]} 20. Nd2 {[%emt 0:00:00]} e5 {[%emt 0:03:30]} 21. a4 {[%emt 0:03:30]} Ra6 {[%emt 0:03:30]} 22. Reb1 {[%emt 0:07:30]} Qe7 {[%emt 0:00:30]} 23. Qa3 {[%emt 0:01:30]} Qg7 {[%emt 0:03:39]} 24. Ne4 {[%emt 0:01:30]} f5 {[%emt 0:01:42]} 25. Nd6 {[%emt 0:07:56]} Ra7 {[%emt 0:00:36]} 26. Qc5 {[%emt 0:01:58]} Ra5 {[%emt 0:00:14]} 27. Rb5 {[%emt 0:01:11]} Rxb5 {[%emt 0:00:42]} 28. axb5 {[%emt 0:00:59]} Ne7 {[%emt 0:00:05]} 29. Ra8 {[%emt 0:00:49]} 1-0